[Event "Early-Titled-Tuesday-Blitz-November-28-2023"]
[Site "Chess.com"]
[Date "2023.11.28"]
[Round "1"]
[White "YouShallNotPass001"]
[Black "Karateloru"]
[Result "0-1"]
[WhiteElo "2447"]
[BlackElo "2796"]
[TimeControl "180+1"]
[EndTime "8:07:23 PST"]
[Termination "Karateloru won by resignation"]

1. Nf3 {[%clk 0:03:00.9]} 1... Nf6 {[%clk 0:03:00.8]} 2. e3 {[%clk 0:03:01.8]}
2... d5 {[%clk 0:02:59.3]} 3. Be2 {[%clk 0:03:02.7]} 3... c5 {[%clk 0:02:59.4]}
4. O-O {[%clk 0:03:03.6]} 4... Nc6 {[%clk 0:02:59.6]} 5. d4 {[%clk 0:03:04.5]}
5... Bg4 {[%clk 0:02:59.1]} 6. h3 {[%clk 0:03:03.9]} 6... Bxf3 {[%clk
0:02:58.5]} 7. Bxf3 {[%clk 0:03:04.8]} 7... e5 {[%clk 0:02:54.7]} 8. dxe5 {[%clk
0:02:49.9]} 8... Nxe5 {[%clk 0:02:54.3]} 9. Nd2 {[%clk 0:02:39]} 9... Bd6 {[%clk
0:02:52.8]} 10. c4 {[%clk 0:02:37.4]} 10... dxc4 {[%clk 0:02:39.8]} 11. Nxc4
{[%clk 0:02:33.4]} 11... Nxc4 {[%clk 0:02:33.3]} 12. Qa4+ {[%clk 0:02:31.6]}
12... Qd7 {[%clk 0:02:33.3]} 13. Qxc4 {[%clk 0:02:31.3]} 13... O-O {[%clk
0:02:33.8]} 14. Rd1 {[%clk 0:02:29.4]} 14... Qe7 {[%clk 0:02:33.6]} 15. Bd2
{[%clk 0:02:13.5]} 15... Rad8 {[%clk 0:02:11.4]} 16. Bc3 {[%clk 0:02:10.4]}
16... b6 {[%clk 0:02:11.6]} 17. a4 {[%clk 0:01:56.8]} 17... Be5 {[%clk
0:02:04.8]} 18. a5 {[%clk 0:01:55.3]} 18... Bxc3 {[%clk 0:02:04.6]} 19. Qxc3
{[%clk 0:01:52.6]} 19... b5 {[%clk 0:02:03.4]} 20. Bc6 {[%clk 0:01:51.3]} 20...
a6 {[%clk 0:01:57.1]} 21. Rac1 {[%clk 0:01:47.4]} 21... h6 {[%clk 0:01:51.4]}
22. Rxd8 {[%clk 0:01:32.5]} 22... Rxd8 {[%clk 0:01:50.3]} 23. Qxc5 {[%clk
0:01:31.2]} 23... Rd1+ {[%clk 0:01:47.5]} 24. Kh2 {[%clk 0:01:31]} 24... Qc7+
{[%clk 0:01:45.1]} 25. g3 {[%clk 0:01:30.3]} 25... Ne4 {[%clk 0:01:28.4]} 26.
Qc2 {[%clk 0:01:13.2]} 26... Rxc1 {[%clk 0:01:27.7]} 27. Qxc1 {[%clk 0:01:12.4]}
27... Nxf2 {[%clk 0:01:27.6]} 28. Qc3 {[%clk 0:00:59.7]} 28... Nd1 {[%clk
0:01:08.2]} 29. Qd4 {[%clk 0:00:54.3]} 29... Nxe3 {[%clk 0:00:49.1]} 30. Be4
{[%clk 0:00:52]} 30... Nf1+ {[%clk 0:00:43.3]} 31. Kg2 {[%clk 0:00:47.2]} 31...
Nxg3 {[%clk 0:00:42.7]} 32. Bd3 {[%clk 0:00:47.1]} 32... Nh5 {[%clk 0:00:27.3]}
33. Be4 {[%clk 0:00:40.4]} 33... Nf6 {[%clk 0:00:22.7]} 34. Bd3 {[%clk
0:00:31.9]} 34... Qxa5 {[%clk 0:00:21]} 35. Qe3 {[%clk 0:00:25.7]} 35... Qd8
{[%clk 0:00:20.1]} 36. Kf3 {[%clk 0:00:20.2]} 36... g6 {[%clk 0:00:19.8]} 37.
Bc2 {[%clk 0:00:19.2]} 37... Kg7 {[%clk 0:00:20]} 38. Qc3 {[%clk 0:00:18.3]}
38... Qd5+ {[%clk 0:00:19.7]} 39. Kf2 {[%clk 0:00:18.7]} 39... Qg5 {[%clk
0:00:18.3]} 40. Bd3 {[%clk 0:00:17.8]} 40... Qf4+ {[%clk 0:00:18.3]} 41. Kg2
{[%clk 0:00:18]} 41... g5 {[%clk 0:00:18.6]} 42. Kg1 {[%clk 0:00:18]} 42... b4
{[%clk 0:00:19]} 43. Kg2 {[%clk 0:00:18.9]} 43... bxc3 {[%clk 0:00:18.1]} 0-1

[Event "Early-Titled-Tuesday-Blitz-November-28-2023"]
[Site "Chess.com"]
[Date "2023.11.28"]
[Round "1"]
[White "ChessSwole"]
[Black "Aleksandar-Topalov"]
[Result "1-0"]
[WhiteElo "2671"]
[BlackElo "2372"]
[TimeControl "180+1"]
[EndTime "8:07:23 PST"]
[Termination "ChessSwole won by checkmate"]

1. e4 {[%clk 0:03:00.9]} 1... e6 {[%clk 0:02:59.5]} 2. d4 {[%clk 0:03:00.6]}
2... d5 {[%clk 0:02:59]} 3. Nc3 {[%clk 0:03:01.3]} 3... Bb4 {[%clk 0:02:58.3]}
4. e5 {[%clk 0:03:00]} 4... Qd7 {[%clk 0:02:57.3]} 5. h4 {[%clk 0:02:58.1]} 5...
h5 {[%clk 0:02:55.1]} 6. Nh3 {[%clk 0:02:53.4]} 6... b6 {[%clk 0:02:53.9]} 7.
Qf3 {[%clk 0:02:44.4]} 7... Ba6 {[%clk 0:02:46.9]} 8. Bxa6 {[%clk 0:02:41.6]}
8... Nxa6 {[%clk 0:02:47]} 9. Qg3 {[%clk 0:02:41.7]} 9... g6 {[%clk 0:02:42.8]}
10. O-O {[%clk 0:02:38.2]} 10... Be7 {[%clk 0:02:36.6]} 11. Bg5 {[%clk
0:02:33.9]} 11... Nb4 {[%clk 0:02:36.1]} 12. Rfc1 {[%clk 0:02:30.2]} 12... Nh6
{[%clk 0:02:24]} 13. a3 {[%clk 0:02:20.2]} 13... Nf5 {[%clk 0:02:23]} 14. Qf4
{[%clk 0:02:19.9]} 14... Nc6 {[%clk 0:02:20.7]} 15. Ne2 {[%clk 0:02:19.5]} 15...
Bxg5 {[%clk 0:02:17.2]} 16. Nxg5 {[%clk 0:02:20.4]} 16... Nce7 {[%clk
0:02:15.5]} 17. c3 {[%clk 0:02:15.7]} 17... c5 {[%clk 0:02:13.8]} 18. a4 {[%clk
0:02:15.8]} 18... Nc6 {[%clk 0:02:01.7]} 19. Ng3 {[%clk 0:02:14]} 19... c4
{[%clk 0:01:57.2]} 20. Nxf5 {[%clk 0:02:09.1]} 20... gxf5 {[%clk 0:01:57]} 21.
Qf3 {[%clk 0:01:54.8]} 21... O-O-O {[%clk 0:01:54.4]} 22. Nh3 {[%clk 0:01:49.4]}
22... Rdg8 {[%clk 0:01:51.1]} 23. Nf4 {[%clk 0:01:48.8]} 23... Rg4 {[%clk
0:01:50.9]} 24. g3 {[%clk 0:01:49.3]} 24... Na5 {[%clk 0:01:46.1]} 25. Re1
{[%clk 0:01:43.3]} 25... Qe7 {[%clk 0:01:45.3]} 26. Kf1 {[%clk 0:01:38.4]} 26...
Nb3 {[%clk 0:01:38.5]} 27. Rad1 {[%clk 0:01:35.3]} 27... Qd7 {[%clk 0:01:36.5]}
28. a5 {[%clk 0:01:29.6]} 28... Nxa5 {[%clk 0:01:33.4]} 29. Ng2 {[%clk
0:01:22.4]} 29... Nb3 {[%clk 0:01:28.2]} 30. Ne3 {[%clk 0:01:22.5]} 30... a5
{[%clk 0:01:16.4]} 31. Kg2 {[%clk 0:01:11.6]} 31... Kc7 {[%clk 0:01:09.2]} 32.
Nxg4 {[%clk 0:01:02.9]} 32... hxg4 {[%clk 0:01:07.8]} 33. Qe3 {[%clk 0:01:00.6]}
33... Rh5 {[%clk 0:01:07]} 34. f3 {[%clk 0:00:59]} 34... gxf3+ {[%clk
0:01:04.5]} 35. Qxf3 {[%clk 0:00:59.9]} 35... Rh8 {[%clk 0:01:01.1]} 36. h5
{[%clk 0:01:00.3]} 36... Qe7 {[%clk 0:00:57.6]} 37. Rh1 {[%clk 0:00:55.8]} 37...
Qg5 {[%clk 0:00:51.8]} 38. Qf4 {[%clk 0:00:53.7]} 38... Qg7 {[%clk 0:00:44.3]}
39. h6 {[%clk 0:00:47.4]} 39... Qg6 {[%clk 0:00:43.6]} 40. Rh4 {[%clk
0:00:44.4]} 40... b5 {[%clk 0:00:40.2]} 41. Rdh1 {[%clk 0:00:42.1]} 41... Rh7
{[%clk 0:00:40.6]} 42. Rh5 {[%clk 0:00:41.5]} 42... Qg8 {[%clk 0:00:32.1]} 43.
Qh4 {[%clk 0:00:26.5]} 43... Kd7 {[%clk 0:00:30]} 44. Qf6 {[%clk 0:00:26.7]}
44... Nd2 {[%clk 0:00:22.1]} 45. Rg5 {[%clk 0:00:25.5]} 45... Qh8 {[%clk
0:00:15.6]} 46. Rg7 {[%clk 0:00:25.1]} 46... Ne4 {[%clk 0:00:09.8]} 47. Qxf7+
{[%clk 0:00:24.6]} 47... Kc6 {[%clk 0:00:07.3]} 48. Qc7# {[%clk 0:00:25.3]} 1-0

[Event "Early-Titled-Tuesday-Blitz-November-28-2023"]
[Site "Chess.com"]
[Date "2023.11.28"]
[Round "1"]
[White "FARIZA2018"]
[Black "Ziyamammadov"]
[Result "1-0"]
[WhiteElo "2526"]
[BlackElo "1827"]
[TimeControl "180+1"]
[EndTime "8:07:23 PST"]
[Termination "FARIZA2018 won by resignation"]

1. e4 {[%clk 0:03:00.9]} 1... e6 {[%clk 0:02:58.3]} 2. d4 {[%clk 0:03:01]} 2...
d5 {[%clk 0:02:57.2]} 3. Nd2 {[%clk 0:03:01.2]} 3... dxe4 {[%clk 0:02:56.8]} 4.
Nxe4 {[%clk 0:03:01.3]} 4... Nd7 {[%clk 0:02:57.4]} 5. Nf3 {[%clk 0:03:00.6]}
5... Ngf6 {[%clk 0:02:58]} 6. Bd3 {[%clk 0:03:00.3]} 6... Nxe4 {[%clk
0:02:57.7]} 7. Bxe4 {[%clk 0:03:00.7]} 7... Nf6 {[%clk 0:02:58.6]} 8. Bd3 {[%clk
0:03:00.9]} 8... c5 {[%clk 0:02:58.1]} 9. c3 {[%clk 0:02:53.9]} 9... cxd4 {[%clk
0:02:55.7]} 10. cxd4 {[%clk 0:02:51.9]} 10... Bb4+ {[%clk 0:02:54.7]} 11. Bd2
{[%clk 0:02:51]} 11... Bxd2+ {[%clk 0:02:53.5]} 12. Qxd2 {[%clk 0:02:51.3]}
12... O-O {[%clk 0:02:54]} 13. O-O {[%clk 0:02:50.5]} 13... Qb6 {[%clk
0:02:53.9]} 14. Rac1 {[%clk 0:02:43.9]} 14... Bd7 {[%clk 0:02:53.3]} 15. Ne5
{[%clk 0:02:44.1]} 15... Rac8 {[%clk 0:02:44.8]} 16. Rc3 {[%clk 0:02:29.1]}
16... g6 {[%clk 0:02:40.4]} 17. Nxd7 {[%clk 0:02:20.7]} 17... Nxd7 {[%clk
0:02:38.3]} 18. Rfc1 {[%clk 0:02:21.1]} 18... Rc6 {[%clk 0:02:26.9]} 19. Rxc6
{[%clk 0:02:20]} 19... bxc6 {[%clk 0:02:27.8]} 20. Be4 {[%clk 0:02:20.1]} 20...
Nb8 {[%clk 0:02:21.7]} 21. Qc3 {[%clk 0:02:17.4]} 21... Rd8 {[%clk 0:02:20.4]}
22. Rd1 {[%clk 0:02:00.6]} 22... c5 {[%clk 0:02:16.4]} 23. d5 {[%clk 0:01:59]}
23... Nc6 {[%clk 0:02:02.6]} 24. Rd2 {[%clk 0:01:30.2]} 24... Ne7 {[%clk
0:01:39.5]} 25. dxe6 {[%clk 0:01:07.8]} 25... fxe6 {[%clk 0:01:21.3]} 26. h4
{[%clk 0:01:02.8]} 26... Nd5 {[%clk 0:01:03.2]} 27. Qh3 {[%clk 0:00:59.4]} 27...
Nf4 {[%clk 0:00:47.9]} 28. Rxd8+ {[%clk 0:00:53]} 28... Qxd8 {[%clk 0:00:47.2]}
29. Qf3 {[%clk 0:00:53.3]} 29... e5 {[%clk 0:00:45.7]} 30. g3 {[%clk 0:00:53.2]}
30... Ne6 {[%clk 0:00:41.3]} 31. Bd5 {[%clk 0:00:53.5]} 31... Qd7 {[%clk
0:00:26.9]} 32. Qe4 {[%clk 0:00:44.9]} 32... Qd6 {[%clk 0:00:21.3]} 33. f4
{[%clk 0:00:44.8]} 33... Kf8 {[%clk 0:00:13.6]} 34. fxe5 {[%clk 0:00:44.5]}
34... Qb6 {[%clk 0:00:13.3]} 35. Qf3+ {[%clk 0:00:42.5]} 35... Ke8 {[%clk
0:00:12.9]} 36. Qf6 {[%clk 0:00:42]} 36... c4+ {[%clk 0:00:11.4]} 37. Kg2 {[%clk
0:00:42.4]} 37... Qxb2+ {[%clk 0:00:11.2]} 38. Kh3 {[%clk 0:00:42.7]} 38... Nd8
{[%clk 0:00:08.3]} 39. Qh8+ {[%clk 0:00:37.1]} 39... Kd7 {[%clk 0:00:08]} 40.
Qxh7+ {[%clk 0:00:36.8]} 40... Kc8 {[%clk 0:00:08.9]} 41. Qxg6 {[%clk 0:00:36]}
41... Qb6 {[%clk 0:00:08.4]} 42. Qxb6 {[%clk 0:00:35.7]} 42... axb6 {[%clk
0:00:09.3]} 43. Bxc4 {[%clk 0:00:36.3]} 43... Kd7 {[%clk 0:00:09.8]} 44. h5
{[%clk 0:00:36.4]} 44... Ke7 {[%clk 0:00:10.7]} 45. h6 {[%clk 0:00:36.8]} 45...
Kf8 {[%clk 0:00:10.6]} 46. g4 {[%clk 0:00:36.5]} 46... Nc6 {[%clk 0:00:11.1]}
47. e6 {[%clk 0:00:35.3]} 47... Ne5 {[%clk 0:00:09.7]} 48. h7 {[%clk 0:00:35.4]}
48... Kg7 {[%clk 0:00:09.2]} 49. e7 {[%clk 0:00:35.9]} 1-0

[Event "Early-Titled-Tuesday-Blitz-November-28-2023"]
[Site "Chess.com"]
[Date "2023.11.28"]
[Round "1"]
[White "baki83"]
[Black "jlf287"]
[Result "1-0"]
[WhiteElo "2814"]
[BlackElo "2453"]
[TimeControl "180+1"]
[EndTime "8:07:25 PST"]
[Termination "baki83 won by resignation"]

1. e4 {[%clk 0:01:53.9]} 1... e5 {[%clk 0:02:59]} 2. Nf3 {[%clk 0:01:53.8]} 2...
Nc6 {[%clk 0:02:59.4]} 3. Bb5 {[%clk 0:01:54]} 3... a6 {[%clk 0:02:59.5]} 4. Ba4
{[%clk 0:01:54.4]} 4... Nf6 {[%clk 0:03:00.2]} 5. O-O {[%clk 0:01:54.1]} 5...
Be7 {[%clk 0:03:00.9]} 6. Re1 {[%clk 0:01:54.1]} 6... b5 {[%clk 0:03:01.6]} 7.
Bb3 {[%clk 0:01:54.2]} 7... O-O {[%clk 0:03:02.5]} 8. h3 {[%clk 0:01:54.6]} 8...
Bb7 {[%clk 0:03:02.2]} 9. d3 {[%clk 0:01:54.4]} 9... d6 {[%clk 0:03:02.9]} 10.
Nc3 {[%clk 0:01:54.3]} 10... Nd4 {[%clk 0:03:02.5]} 11. Nxd4 {[%clk 0:01:54.1]}
11... exd4 {[%clk 0:03:02.9]} 12. Ne2 {[%clk 0:01:54.8]} 12... c5 {[%clk
0:03:03.3]} 13. Ng3 {[%clk 0:01:54.9]} 13... Rc8 {[%clk 0:02:51.2]} 14. a4
{[%clk 0:01:45.6]} 14... c4 {[%clk 0:02:44.8]} 15. Ba2 {[%clk 0:01:34.4]} 15...
d5 {[%clk 0:02:33.6]} 16. e5 {[%clk 0:01:33.7]} 16... Ne8 {[%clk 0:02:33.4]} 17.
Nf5 {[%clk 0:01:32.2]} 17... Nc7 {[%clk 0:02:26.1]} 18. Qg4 {[%clk 0:01:30.3]}
18... Ne6 {[%clk 0:02:26.7]} 19. Nxg7 {[%clk 0:01:23.5]} 19... Kh8 {[%clk
0:02:17]} 20. Nxe6 {[%clk 0:01:18.3]} 20... fxe6 {[%clk 0:02:17.9]} 21. Qxe6
{[%clk 0:01:18.5]} 21... Rc6 {[%clk 0:02:06.1]} 22. Qg4 {[%clk 0:01:18.1]} 22...
Rg6 {[%clk 0:02:05.8]} 23. Qe2 {[%clk 0:01:14.8]} 23... Bh4 {[%clk 0:02:03]} 24.
Rf1 {[%clk 0:01:09.7]} 24... Bc8 {[%clk 0:01:57.9]} 25. Kh2 {[%clk 0:01:01.4]}
25... Qd7 {[%clk 0:01:49]} 26. g4 {[%clk 0:00:48.8]} 26... h5 {[%clk 0:01:35.5]}
27. f3 {[%clk 0:00:47.5]} 27... Qe6 {[%clk 0:01:17.9]} 28. Bd2 {[%clk
0:00:43.6]} 28... Kg7 {[%clk 0:01:14]} 29. Rae1 {[%clk 0:00:24]} 29... Rh8
{[%clk 0:01:13.1]} 30. Kg2 {[%clk 0:00:21.3]} 30... Be7 {[%clk 0:00:58.1]} 31.
Rh1 {[%clk 0:00:17.4]} 31... Kf7 {[%clk 0:00:34.5]} 32. Ref1 {[%clk 0:00:17.1]}
32... Ke8 {[%clk 0:00:34.4]} 33. Bf4 {[%clk 0:00:17]} 33... Rhg8 {[%clk
0:00:33.8]} 34. Bg3 {[%clk 0:00:17.1]} 34... Kd7 {[%clk 0:00:25.2]} 35. b3
{[%clk 0:00:17.1]} 35... c3 {[%clk 0:00:21.7]} 36. axb5 {[%clk 0:00:17.5]} 36...
axb5 {[%clk 0:00:21.9]} 37. b4 {[%clk 0:00:18.1]} 37... Kc6 {[%clk 0:00:17]} 38.
Bb3 {[%clk 0:00:18.5]} 38... Qf7 {[%clk 0:00:14.5]} 39. Qf2 {[%clk 0:00:17.9]}
39... Qh7 {[%clk 0:00:11.8]} 40. Qxd4 {[%clk 0:00:17.9]} 40... Rf8 {[%clk
0:00:09.6]} 41. Bxd5+ {[%clk 0:00:16.5]} 41... Kc7 {[%clk 0:00:08.3]} 42. e6+
{[%clk 0:00:17]} 42... Bd6 {[%clk 0:00:08.5]} 43. Qc5+ {[%clk 0:00:17.2]} 43...
Kb8 {[%clk 0:00:05.5]} 44. Qxd6+ {[%clk 0:00:17.2]} 44... Ka7 {[%clk 0:00:04.4]}
45. Ra1+ {[%clk 0:00:17.2]} 1-0

[Event "Early-Titled-Tuesday-Blitz-November-28-2023"]
[Site "Chess.com"]
[Date "2023.11.28"]
[Round "1"]
[White "abykhovsky"]
[Black "Real_taiatai"]
[Result "1-0"]
[WhiteElo "2674"]
[BlackElo "2362"]
[TimeControl "180+1"]
[EndTime "8:07:27 PST"]
[Termination "abykhovsky won by resignation"]

1. Nf3 {[%clk 0:02:08.4]} 1... Nf6 {[%clk 0:02:58.8]} 2. d4 {[%clk 0:02:09.3]}
2... g6 {[%clk 0:02:58.4]} 3. c4 {[%clk 0:02:09.8]} 3... Bg7 {[%clk 0:02:58.2]}
4. Nc3 {[%clk 0:02:10.7]} 4... O-O {[%clk 0:02:58]} 5. Bg5 {[%clk 0:02:11.4]}
5... c5 {[%clk 0:02:56.1]} 6. d5 {[%clk 0:02:11.7]} 6... d6 {[%clk 0:02:55.8]}
7. h3 {[%clk 0:02:09.7]} 7... h6 {[%clk 0:02:55.7]} 8. Bh4 {[%clk 0:02:09]} 8...
e6 {[%clk 0:02:56]} 9. Nd2 {[%clk 0:02:07.6]} 9... exd5 {[%clk 0:02:55.9]} 10.
cxd5 {[%clk 0:02:08.5]} 10... Re8 {[%clk 0:02:53.2]} 11. e3 {[%clk 0:02:08.7]}
11... a6 {[%clk 0:02:39.3]} 12. a4 {[%clk 0:02:08.6]} 12... Nbd7 {[%clk
0:02:39.6]} 13. Be2 {[%clk 0:02:08.7]} 13... g5 {[%clk 0:02:28.2]} 14. Bg3
{[%clk 0:02:07.7]} 14... Ne5 {[%clk 0:02:29.1]} 15. O-O {[%clk 0:02:07.4]} 15...
Bf5 {[%clk 0:02:26]} 16. e4 {[%clk 0:01:59.3]} 16... Bd7 {[%clk 0:02:22.8]} 17.
Rb1 {[%clk 0:01:53.5]} 17... Rb8 {[%clk 0:02:19.3]} 18. b4 {[%clk 0:01:53.4]}
18... cxb4 {[%clk 0:02:18.4]} 19. Rxb4 {[%clk 0:01:54.3]} 19... Qc8 {[%clk
0:02:15.9]} 20. Qb3 {[%clk 0:01:53.3]} 20... h5 {[%clk 0:01:54.1]} 21. Rc1
{[%clk 0:01:49.8]} 21... h4 {[%clk 0:01:50.8]} 22. Bh2 {[%clk 0:01:49.2]} 22...
Ng6 {[%clk 0:01:37.3]} 23. Bxd6 {[%clk 0:01:47]} 23... Nf4 {[%clk 0:01:21.5]}
24. Bxb8 {[%clk 0:01:37]} 24... Qxb8 {[%clk 0:01:18.7]} 25. Rxb7 {[%clk
0:01:35.5]} 25... Qc8 {[%clk 0:01:07.3]} 26. Bf1 {[%clk 0:01:23]} 26... Bxa4
{[%clk 0:00:51.5]} 27. Qb1 {[%clk 0:01:06.2]} 27... Bd7 {[%clk 0:00:39.5]} 28.
Ne2 {[%clk 0:01:04.1]} 28... Nxe2+ {[%clk 0:00:31]} 29. Bxe2 {[%clk 0:01:05]}
29... Qd8 {[%clk 0:00:28.1]} 30. Bd3 {[%clk 0:00:52.5]} 30... g4 {[%clk
0:00:23.7]} 31. Qb6 {[%clk 0:00:49.5]} 31... Qe7 {[%clk 0:00:19.8]} 32. hxg4
{[%clk 0:00:42.8]} 32... Nxg4 {[%clk 0:00:19.5]} 33. Nf3 {[%clk 0:00:42.3]}
33... h3 {[%clk 0:00:19.3]} 34. g3 {[%clk 0:00:41.2]} 34... Ne5 {[%clk
0:00:19.8]} 35. Be2 {[%clk 0:00:38.1]} 35... Ng4 {[%clk 0:00:16.8]} 36. Bd3
{[%clk 0:00:30.9]} 36... Ne5 {[%clk 0:00:13.6]} 37. Nxe5 {[%clk 0:00:29.7]}
37... Bxe5 {[%clk 0:00:12.5]} 38. Qh6 {[%clk 0:00:26.1]} 38... Qa3 {[%clk
0:00:13]} 39. Rxd7 {[%clk 0:00:23.6]} 39... Qxd3 {[%clk 0:00:12.6]} 40. Qxh3
{[%clk 0:00:23.1]} 40... Qxe4 {[%clk 0:00:12.1]} 41. Qh4 {[%clk 0:00:19.2]}
41... Qe2 {[%clk 0:00:10.9]} 42. Rd8 {[%clk 0:00:18.8]} 42... Bg7 {[%clk
0:00:09.7]} 43. d6 {[%clk 0:00:17.9]} 43... Rxd8 {[%clk 0:00:09.5]} 44. Qxd8+
{[%clk 0:00:17.8]} 44... Kh7 {[%clk 0:00:10.4]} 45. Qh4+ {[%clk 0:00:18]} 45...
Bh6 {[%clk 0:00:10.4]} 46. Qc4 {[%clk 0:00:17.3]} 46... Qd2 {[%clk 0:00:10.4]}
47. Qc2+ {[%clk 0:00:16.8]} 47... Kg7 {[%clk 0:00:10.1]} 48. Qxd2 {[%clk
0:00:16.5]} 48... Bxd2 {[%clk 0:00:11]} 49. d7 {[%clk 0:00:17]} 49... Ba5 {[%clk
0:00:09.9]} 50. Rc8 {[%clk 0:00:16.8]} 1-0

[Event "Early-Titled-Tuesday-Blitz-November-28-2023"]
[Site "Chess.com"]
[Date "2023.11.28"]
[Round "1"]
[White "DarZay"]
[Black "IamSchrodingersCat"]
[Result "0-1"]
[WhiteElo "2232"]
[BlackElo "2584"]
[TimeControl "180+1"]
[EndTime "8:07:28 PST"]
[Termination "IamSchrodingersCat won on time"]

1. e4 {[%clk 0:02:57.8]} 1... c5 {[%clk 0:02:59.4]} 2. Nf3 {[%clk 0:02:57.3]}
2... d6 {[%clk 0:02:59.6]} 3. d4 {[%clk 0:02:57.5]} 3... cxd4 {[%clk 0:03:00.5]}
4. Nxd4 {[%clk 0:02:57.9]} 4... Nf6 {[%clk 0:03:00.9]} 5. Nc3 {[%clk 0:02:58.1]}
5... g6 {[%clk 0:03:01.2]} 6. Bc4 {[%clk 0:02:56.9]} 6... Bg7 {[%clk 0:03:01.3]}
7. O-O {[%clk 0:02:56.3]} 7... O-O {[%clk 0:03:01.5]} 8. a4 {[%clk 0:02:55.2]}
8... Nc6 {[%clk 0:02:53.3]} 9. Nb3 {[%clk 0:02:53.8]} 9... Bd7 {[%clk
0:02:46.7]} 10. h3 {[%clk 0:02:42.3]} 10... Rc8 {[%clk 0:02:45.6]} 11. Qe2
{[%clk 0:02:40]} 11... Na5 {[%clk 0:02:17.1]} 12. Nxa5 {[%clk 0:02:36]} 12...
Qxa5 {[%clk 0:02:18]} 13. Nd5 {[%clk 0:02:34.5]} 13... Nxd5 {[%clk 0:02:15.1]}
14. exd5 {[%clk 0:02:34]} 14... Rfe8 {[%clk 0:02:09.6]} 15. c3 {[%clk
0:02:13.7]} 15... a6 {[%clk 0:01:47.1]} 16. Be3 {[%clk 0:02:04.4]} 16... Qc7
{[%clk 0:01:41.7]} 17. Bb3 {[%clk 0:01:59.8]} 17... Ra8 {[%clk 0:01:32.4]} 18.
a5 {[%clk 0:01:59.2]} 18... Bb5 {[%clk 0:01:26.4]} 19. c4 {[%clk 0:01:55.9]}
19... Bd7 {[%clk 0:01:27.1]} 20. Bb6 {[%clk 0:01:55.1]} 20... Qc8 {[%clk
0:01:27.1]} 21. Rac1 {[%clk 0:01:51.5]} 21... e6 {[%clk 0:01:22.7]} 22. Qd2
{[%clk 0:01:43.8]} 22... e5 {[%clk 0:01:13.3]} 23. c5 {[%clk 0:01:42]} 23...
dxc5 {[%clk 0:01:10.9]} 24. Rxc5 {[%clk 0:01:38.5]} 24... Qb8 {[%clk 0:01:11.3]}
25. Rc7 {[%clk 0:01:35.6]} 25... Bb5 {[%clk 0:00:50.6]} 26. Rfc1 {[%clk
0:01:34.2]} 26... Rf8 {[%clk 0:00:45.9]} 27. d6 {[%clk 0:01:29.6]} 27... Qe8
{[%clk 0:00:38.4]} 28. d7 {[%clk 0:01:17]} 28... Qd8 {[%clk 0:00:30.2]} 29. Rxb7
{[%clk 0:00:59.8]} 29... Qh4 {[%clk 0:00:20]} 30. d8=Q {[%clk 0:00:42.8]} 30...
Raxd8 {[%clk 0:00:18.6]} 31. Bxd8 {[%clk 0:00:42.5]} 31... Rxd8 {[%clk
0:00:19.1]} 32. Rxf7 {[%clk 0:00:13.7]} 32... Kh8 {[%clk 0:00:14.8]} 33. Qe3
{[%clk 0:00:07.1]} 33... Re8 {[%clk 0:00:11.3]} 34. Rfc7 {[%clk 0:00:06.1]}
34... Bh6 {[%clk 0:00:09.4]} 35. f4 {[%clk 0:00:04.8]} 35... Bxf4 {[%clk
0:00:08.5]} 36. Qa7 {[%clk 0:00:04.3]} 36... Bxc1 {[%clk 0:00:07.5]} 37. Rxc1
{[%clk 0:00:03.3]} 37... Qd4+ {[%clk 0:00:07.3]} 38. Qxd4 {[%clk 0:00:02.6]}
38... exd4 {[%clk 0:00:08.2]} 0-1

[Event "Early-Titled-Tuesday-Blitz-November-28-2023"]
[Site "Chess.com"]
[Date "2023.11.28"]
[Round "1"]
[White "Tsomaia_Nikoloz"]
[Black "Eagle_2019"]
[Result "0-1"]
[WhiteElo "2381"]
[BlackElo "2689"]
[TimeControl "180+1"]
[EndTime "8:07:29 PST"]
[Termination "Eagle_2019 won by resignation"]

1. e4 {[%clk 0:02:59.7]} 1... c5 {[%clk 0:02:58.9]} 2. Nf3 {[%clk 0:02:59.5]}
2... Nc6 {[%clk 0:02:57.6]} 3. Bb5 {[%clk 0:02:58.8]} 3... e5 {[%clk 0:02:56.2]}
4. Nc3 {[%clk 0:02:57.6]} 4... Bd6 {[%clk 0:02:54.3]} 5. d3 {[%clk 0:02:57.1]}
5... Nge7 {[%clk 0:02:53.3]} 6. O-O {[%clk 0:02:54.3]} 6... O-O {[%clk
0:02:52.8]} 7. Nd2 {[%clk 0:02:41.9]} 7... Nd4 {[%clk 0:02:51.8]} 8. Ba4 {[%clk
0:02:40.6]} 8... a6 {[%clk 0:02:51.2]} 9. Nc4 {[%clk 0:02:37.4]} 9... Bc7 {[%clk
0:02:49.7]} 10. Ne3 {[%clk 0:02:37.4]} 10... b5 {[%clk 0:02:45.1]} 11. Bb3
{[%clk 0:02:37.3]} 11... Bb7 {[%clk 0:02:44.9]} 12. Ncd5 {[%clk 0:02:32.1]}
12... Nxb3 {[%clk 0:02:40.2]} 13. axb3 {[%clk 0:02:32.1]} 13... Nxd5 {[%clk
0:02:39.9]} 14. Nxd5 {[%clk 0:02:31.6]} 14... Bxd5 {[%clk 0:02:38.5]} 15. exd5
{[%clk 0:02:32.5]} 15... Re8 {[%clk 0:02:36.6]} 16. Re1 {[%clk 0:02:23.4]} 16...
Qh4 {[%clk 0:02:33.2]} 17. g3 {[%clk 0:01:35.7]} 17... Qe7 {[%clk 0:02:31.7]}
18. Qf3 {[%clk 0:01:29.9]} 18... Qd6 {[%clk 0:02:25.2]} 19. c4 {[%clk
0:01:24.3]} 19... Rab8 {[%clk 0:02:24.1]} 20. Ra2 {[%clk 0:01:17.2]} 20... a5
{[%clk 0:02:21.4]} 21. Bd2 {[%clk 0:01:16.3]} 21... Qa6 {[%clk 0:02:09.8]} 22.
Rea1 {[%clk 0:00:53.8]} 22... a4 {[%clk 0:02:09.1]} 23. Qg4 {[%clk 0:00:44.6]}
23... g6 {[%clk 0:01:57.7]} 24. bxa4 {[%clk 0:00:44.2]} 24... f5 {[%clk
0:01:50.6]} 25. Qh4 {[%clk 0:00:44]} 25... bxc4 {[%clk 0:01:46.2]} 26. Qxc4
{[%clk 0:00:41.1]} 26... Qxc4 {[%clk 0:01:05.6]} 27. dxc4 {[%clk 0:00:42]} 27...
Ra8 {[%clk 0:01:06.5]} 28. a5 {[%clk 0:00:38.9]} 28... Ra6 {[%clk 0:01:05.9]}
29. b4 {[%clk 0:00:36.4]} 29... cxb4 {[%clk 0:01:04.8]} 30. Bxb4 {[%clk
0:00:36.4]} 30... Rb8 {[%clk 0:01:03.9]} 31. Bd2 {[%clk 0:00:31]} 31... Kf7
{[%clk 0:01:02.7]} 32. c5 {[%clk 0:00:25.8]} 32... d6 {[%clk 0:01:01.2]} 33. c6
{[%clk 0:00:24.5]} 33... Rb5 {[%clk 0:00:59.8]} 34. Be3 {[%clk 0:00:19.4]} 34...
Rxd5 {[%clk 0:00:55.3]} 35. Bb6 {[%clk 0:00:10]} 35... Bxb6 {[%clk 0:00:53.8]}
36. axb6 {[%clk 0:00:10.9]} 36... Rxb6 {[%clk 0:00:52.8]} 37. Rc1 {[%clk
0:00:03.5]} 37... Rc5 {[%clk 0:00:50.3]} 38. Ra7+ {[%clk 0:00:02.8]} 38... Ke6
{[%clk 0:00:48.8]} 39. Rxc5 {[%clk 0:00:02]} 39... dxc5 {[%clk 0:00:49.6]} 40.
c7 {[%clk 0:00:02.3]} 40... Kd7 {[%clk 0:00:44.1]} 41. c8=Q+ {[%clk 0:00:02.5]}
41... Kxc8 {[%clk 0:00:43.2]} 42. Rxh7 {[%clk 0:00:03.4]} 42... c4 {[%clk
0:00:40.6]} 43. Kf1 {[%clk 0:00:04.1]} 43... Rb2 {[%clk 0:00:38.8]} 44. Rg7
{[%clk 0:00:02.9]} 44... c3 {[%clk 0:00:37.8]} 45. Rxg6 {[%clk 0:00:03]} 45...
c2 {[%clk 0:00:34.4]} 46. Rc6+ {[%clk 0:00:02.9]} 46... Kd7 {[%clk 0:00:34.9]}
47. Rc3 {[%clk 0:00:02.1]} 47... Rb1+ {[%clk 0:00:35.1]} 48. Kg2 {[%clk
0:00:02.7]} 48... c1=Q {[%clk 0:00:36]} 49. Rxc1 {[%clk 0:00:03.4]} 49... Rxc1
{[%clk 0:00:36.9]} 0-1